[Event "Late-Titled-Tuesday-Blitz-April-02-2024"]
[Site "Chess.com"]
[Date "2024.04.02"]
[Round "7"]
[White "subham777"]
[Black "SergioMoralesG"]
[Result "1-0"]
[WhiteElo "2565"]
[BlackElo "2412"]
[TimeControl "180+1"]
[EndTime "15:15:50 PDT"]
[Termination "subham777 won on time"]

1. e4 {[%clk 0:03:00.9]} 1... c5 {[%clk 0:02:56.4]} 2. Nf3 {[%clk 0:03:00]} 2...
e6 {[%clk 0:02:56.8]} 3. g3 {[%clk 0:02:59.3]} 3... d5 {[%clk 0:02:56.3]} 4.
exd5 {[%clk 0:02:59.3]} 4... exd5 {[%clk 0:02:57.2]} 5. d4 {[%clk 0:02:59.7]}
5... Nc6 {[%clk 0:02:57.1]} 6. Bg2 {[%clk 0:03:00]} 6... Bg4 {[%clk 0:02:54.8]}
7. c3 {[%clk 0:02:57.1]} 7... Nf6 {[%clk 0:02:52.1]} 8. O-O {[%clk 0:02:56.9]}
8... c4 {[%clk 0:02:49.2]} 9. Re1+ {[%clk 0:02:54.3]} 9... Be7 {[%clk 0:02:49]}
10. Nbd2 {[%clk 0:02:51.2]} 10... O-O {[%clk 0:02:46.5]} 11. Nf1 {[%clk
0:02:51]} 11... h6 {[%clk 0:02:40.4]} 12. Ne3 {[%clk 0:02:49.4]} 12... Be6
{[%clk 0:02:40.5]} 13. Ne5 {[%clk 0:02:39.3]} 13... Qc7 {[%clk 0:02:35.9]} 14.
f4 {[%clk 0:02:31.8]} 14... Rad8 {[%clk 0:02:31.8]} 15. Kh1 {[%clk 0:02:20.6]}
15... b5 {[%clk 0:02:31.1]} 16. Qf3 {[%clk 0:02:11.4]} 16... Nxe5 {[%clk
0:02:01.5]} 17. fxe5 {[%clk 0:02:03.4]} 17... Ne4 {[%clk 0:01:58.5]} 18. Nf5
{[%clk 0:02:01.6]} 18... Bg5 {[%clk 0:01:43.9]} 19. Bxg5 {[%clk 0:01:49.2]}
19... Nxg5 {[%clk 0:01:42.7]} 20. Qf4 {[%clk 0:01:42.2]} 20... Bxf5 {[%clk
0:01:13.7]} 21. Qxf5 {[%clk 0:01:39.2]} 21... a5 {[%clk 0:01:13.1]} 22. h4
{[%clk 0:01:34.5]} 22... Ne6 {[%clk 0:01:12.6]} 23. Rf1 {[%clk 0:01:32.1]} 23...
b4 {[%clk 0:01:10.3]} 24. g4 {[%clk 0:01:30.3]} 24... Qe7 {[%clk 0:01:07.5]} 25.
g5 {[%clk 0:01:15.1]} 25... hxg5 {[%clk 0:01:01.9]} 26. h5 {[%clk 0:01:15.2]}
26... bxc3 {[%clk 0:00:44.1]} 27. bxc3 {[%clk 0:01:16.1]} 27... Rb8 {[%clk
0:00:43.7]} 28. Bxd5 {[%clk 0:01:06.6]} 28... Nf4 {[%clk 0:00:35.5]} 29. Bf3
{[%clk 0:00:58.5]} 29... g6 {[%clk 0:00:13.9]} 30. Qe4 {[%clk 0:00:27]} 30...
gxh5 {[%clk 0:00:13.6]} 31. Rg1 {[%clk 0:00:27.5]} 31... f5 {[%clk 0:00:09.3]}
32. Qxf4 {[%clk 0:00:24]} 32... g4 {[%clk 0:00:05.7]} 33. Bd5+ {[%clk
0:00:22.5]} 33... Kg7 {[%clk 0:00:04.2]} 34. Raf1 {[%clk 0:00:16.3]} 34... Rb2
{[%clk 0:00:01.7]} 35. Rg2 {[%clk 0:00:15.5]} 1-0

[Event "Late-Titled-Tuesday-Blitz-April-02-2024"]
[Site "Chess.com"]
[Date "2024.04.02"]
[Round "7"]
[White "HajiyevKanan"]
[Black "Byniolus"]
[Result "0-1"]
[WhiteElo "2611"]
[BlackElo "2783"]
[TimeControl "180+1"]
[EndTime "15:15:57 PDT"]
[Termination "Byniolus won on time"]

1. d4 {[%clk 0:03:00.9]} 1... d6 {[%clk 0:03:00.3]} 2. Nf3 {[%clk 0:02:58.6]}
2... Bg4 {[%clk 0:03:00.1]} 3. g3 {[%clk 0:02:58.8]} 3... Bxf3 {[%clk
0:03:00.3]} 4. exf3 {[%clk 0:02:59.7]} 4... c6 {[%clk 0:02:59.7]} 5. Bg2 {[%clk
0:02:59.3]} 5... e6 {[%clk 0:02:59.9]} 6. O-O {[%clk 0:02:59.7]} 6... g6 {[%clk
0:03:00.4]} 7. f4 {[%clk 0:02:59.8]} 7... Bg7 {[%clk 0:03:00.8]} 8. c3 {[%clk
0:03:00.7]} 8... Ne7 {[%clk 0:03:01]} 9. Nd2 {[%clk 0:03:01.2]} 9... O-O {[%clk
0:03:01.6]} 10. Nf3 {[%clk 0:03:01.5]} 10... Nd7 {[%clk 0:03:02]} 11. Re1 {[%clk
0:03:02.1]} 11... d5 {[%clk 0:02:58.4]} 12. Ne5 {[%clk 0:03:01.8]} 12... Rc8
{[%clk 0:02:58.7]} 13. h4 {[%clk 0:03:00.6]} 13... h5 {[%clk 0:02:58.1]} 14. Bf3
{[%clk 0:03:01]} 14... c5 {[%clk 0:02:52.5]} 15. Nxd7 {[%clk 0:02:50.7]} 15...
Qxd7 {[%clk 0:02:52.4]} 16. dxc5 {[%clk 0:02:51.2]} 16... Nf5 {[%clk 0:02:42.6]}
17. Be3 {[%clk 0:02:03.4]} 17... Nxe3 {[%clk 0:02:41.5]} 18. fxe3 {[%clk
0:02:00.8]} 18... Rxc5 {[%clk 0:02:36.7]} 19. Qd3 {[%clk 0:01:49.6]} 19... e5
{[%clk 0:02:15.2]} 20. Kg2 {[%clk 0:01:35.8]} 20... Rd8 {[%clk 0:02:00.4]} 21.
Rad1 {[%clk 0:01:33.9]} 21... Qc7 {[%clk 0:01:46.2]} 22. f5 {[%clk 0:01:16.1]}
22... Qb6 {[%clk 0:01:36.9]} 23. b4 {[%clk 0:00:47.1]} 23... Rxc3 {[%clk
0:00:54.7]} 24. Qxc3 {[%clk 0:00:40.1]} 24... e4 {[%clk 0:00:55.4]} 25. Qc5
{[%clk 0:00:30.4]} 25... exf3+ {[%clk 0:00:55.6]} 26. Kxf3 {[%clk 0:00:27.4]}
26... Qf6 {[%clk 0:00:41.3]} 27. Rxd5 {[%clk 0:00:27]} 27... Re8 {[%clk
0:00:41.9]} 28. Qxa7 {[%clk 0:00:19.1]} 28... Qe7 {[%clk 0:00:38.1]} 29. fxg6
{[%clk 0:00:13.4]} 29... Qe4+ {[%clk 0:00:36.6]} 30. Kf2 {[%clk 0:00:12.6]}
30... Qxd5 {[%clk 0:00:37.5]} 31. gxf7+ {[%clk 0:00:06.3]} 31... Qxf7+ {[%clk
0:00:38.4]} 32. Kg2 {[%clk 0:00:06.8]} 32... Rf8 {[%clk 0:00:38.4]} 33. e4
{[%clk 0:00:03.1]} 33... Qf3+ {[%clk 0:00:22.7]} 34. Kh2 {[%clk 0:00:02.7]}
34... Be5 {[%clk 0:00:23.6]} 35. Qg1 {[%clk 0:00:01.9]} 35... Ra8 {[%clk
0:00:15.8]} 36. a4 {[%clk 0:00:01.6]} 36... Rxa4 {[%clk 0:00:15.8]} 37. Re3
{[%clk 0:00:02.5]} 37... Ra2+ {[%clk 0:00:15.1]} 0-1

[Event "Late-Titled-Tuesday-Blitz-April-02-2024"]
[Site "Chess.com"]
[Date "2024.04.02"]
[Round "7"]
[White "Godzillator"]
[Black "ImportedItalianMaple"]
[Result "1-0"]
[WhiteElo "2406"]
[BlackElo "2517"]
[TimeControl "180+1"]
[EndTime "15:15:58 PDT"]
[Termination "Godzillator won by checkmate"]

1. c4 {[%clk 0:03:00.9]} 1... g6 {[%clk 0:02:58.3]} 2. Nc3 {[%clk 0:02:58.8]}
2... Bg7 {[%clk 0:02:58.7]} 3. d4 {[%clk 0:02:59.1]} 3... c5 {[%clk 0:02:54.5]}
4. d5 {[%clk 0:02:58.4]} 4... Bxc3+ {[%clk 0:02:55.1]} 5. bxc3 {[%clk
0:02:58.5]} 5... e5 {[%clk 0:02:55.8]} 6. h4 {[%clk 0:02:57]} 6... d6 {[%clk
0:02:50.4]} 7. h5 {[%clk 0:02:56.8]} 7... Kd7 {[%clk 0:02:15.8]} 8. hxg6 {[%clk
0:02:55.3]} 8... fxg6 {[%clk 0:02:16.7]} 9. g3 {[%clk 0:02:53.8]} 9... Kc7
{[%clk 0:02:16.5]} 10. Bh3 {[%clk 0:02:53]} 10... Nf6 {[%clk 0:02:10.4]} 11.
Bxc8 {[%clk 0:02:52.7]} 11... Qxc8 {[%clk 0:02:11.2]} 12. Nh3 {[%clk 0:02:53]}
12... Nbd7 {[%clk 0:02:07.9]} 13. Ng5 {[%clk 0:02:52.7]} 13... Nf8 {[%clk
0:02:05.1]} 14. Rb1 {[%clk 0:02:40.8]} 14... Qe8 {[%clk 0:01:58.8]} 15. Qb3
{[%clk 0:02:36.5]} 15... b6 {[%clk 0:01:56.8]} 16. a4 {[%clk 0:02:35.7]} 16...
h6 {[%clk 0:01:52.6]} 17. a5 {[%clk 0:02:35.1]} 17... Rb8 {[%clk 0:01:53.1]} 18.
Qa2 {[%clk 0:02:28]} 18... Nh5 {[%clk 0:01:39.4]} 19. axb6+ {[%clk 0:02:26.8]}
19... axb6 {[%clk 0:01:39.8]} 20. Ne4 {[%clk 0:02:20.5]} 20... Nd7 {[%clk
0:01:28.9]} 21. Qa7+ {[%clk 0:02:18]} 21... Rb7 {[%clk 0:01:28.9]} 22. Qxb7+
{[%clk 0:02:18.2]} 22... Kxb7 {[%clk 0:01:28.4]} 23. Nxd6+ {[%clk 0:02:18.5]}
23... Kc7 {[%clk 0:01:29.1]} 24. Nxe8+ {[%clk 0:02:18.8]} 24... Rxe8 {[%clk
0:01:29.6]} 25. g4 {[%clk 0:02:18.3]} 25... Nhf6 {[%clk 0:01:18.3]} 26. Rxh6
{[%clk 0:02:18.2]} 26... Nxg4 {[%clk 0:01:19.2]} 27. Rxg6 {[%clk 0:02:18.4]}
27... Ngf6 {[%clk 0:01:19.2]} 28. f3 {[%clk 0:02:16]} 28... e4 {[%clk
0:01:17.3]} 29. Bg5 {[%clk 0:02:10.8]} 29... Nh5 {[%clk 0:01:06.7]} 30. Rc6+
{[%clk 0:01:57.8]} 30... Kb7 {[%clk 0:01:05.7]} 31. Re6 {[%clk 0:01:56.7]} 31...
Rg8 {[%clk 0:01:03.7]} 32. f4 {[%clk 0:01:37.2]} 32... Nxf4 {[%clk 0:01:02.6]}
33. Bxf4 {[%clk 0:01:37.3]} 33... Rg1+ {[%clk 0:01:02.6]} 34. Kd2 {[%clk
0:01:37.6]} 34... Rxb1 {[%clk 0:01:03.2]} 35. Rxe4 {[%clk 0:01:37.9]} 35... Rb2+
{[%clk 0:00:59.1]} 36. Kd3 {[%clk 0:01:36.7]} 36... Nf6 {[%clk 0:00:56.2]} 37.
Re7+ {[%clk 0:01:34.1]} 37... Kc8 {[%clk 0:00:56.4]} 38. e4 {[%clk 0:01:26.6]}
38... Ng4 {[%clk 0:00:56]} 39. e5 {[%clk 0:01:12.5]} 39... Kd8 {[%clk 0:00:40]}
40. Rg7 {[%clk 0:01:04.6]} 40... Nf2+ {[%clk 0:00:39.4]} 41. Ke3 {[%clk
0:01:04]} 41... Nd1+ {[%clk 0:00:39.6]} 42. Kf3 {[%clk 0:01:01.3]} 42... Rf2+
{[%clk 0:00:28.7]} 43. Kg3 {[%clk 0:00:59.7]} 43... Rf1 {[%clk 0:00:29]} 44.
Bg5+ {[%clk 0:00:58.1]} 44... Ke8 {[%clk 0:00:27.5]} 45. e6 {[%clk 0:00:56.5]}
45... Kf8 {[%clk 0:00:18.2]} 46. Rb7 {[%clk 0:00:54.7]} 46... Rg1+ {[%clk
0:00:16.8]} 47. Kf4 {[%clk 0:00:54.8]} 47... Nxc3 {[%clk 0:00:15.6]} 48. Bf6
{[%clk 0:00:49.9]} 48... Rf1+ {[%clk 0:00:14.6]} 49. Ke5 {[%clk 0:00:50]} 49...
Re1+ {[%clk 0:00:11.8]} 50. Kf5 {[%clk 0:00:45.4]} 50... Rf1+ {[%clk 0:00:11.7]}
51. Kg6 {[%clk 0:00:43.4]} 51... Rg1+ {[%clk 0:00:11.9]} 52. Kh5 {[%clk
0:00:41.1]} 52... Rh1+ {[%clk 0:00:10.8]} 53. Kg4 {[%clk 0:00:41.1]} 53... Rg1+
{[%clk 0:00:11.4]} 54. Kh3 {[%clk 0:00:41.2]} 54... Rf1 {[%clk 0:00:10.3]} 55.
Rb8# {[%clk 0:00:40.4]} 1-0

[Event "Late-Titled-Tuesday-Blitz-April-02-2024"]
[Site "Chess.com"]
[Date "2024.04.02"]
[Round "7"]
[White "Onthequiet"]
[Black "PonyQueen07"]
[Result "1-0"]
[WhiteElo "2427"]
[BlackElo "2248"]
[TimeControl "180+1"]
[EndTime "15:16:04 PDT"]
[Termination "Onthequiet won on time"]

1. d4 {[%clk 0:02:59]} 1... Nf6 {[%clk 0:03:00.1]} 2. Nf3 {[%clk 0:02:59.4]}
2... e6 {[%clk 0:02:59.9]} 3. Bg5 {[%clk 0:02:59.7]} 3... d5 {[%clk 0:02:51.3]}
4. e3 {[%clk 0:02:58]} 4... Bd6 {[%clk 0:02:45.7]} 5. c4 {[%clk 0:02:57.2]} 5...
c6 {[%clk 0:02:44.8]} 6. Nc3 {[%clk 0:02:56.3]} 6... Nbd7 {[%clk 0:02:41.9]} 7.
Qb3 {[%clk 0:02:54.3]} 7... O-O {[%clk 0:02:40.9]} 8. Bd3 {[%clk 0:02:49.9]}
8... h6 {[%clk 0:02:40.2]} 9. Bh4 {[%clk 0:02:49.7]} 9... dxc4 {[%clk
0:02:35.8]} 10. Bxc4 {[%clk 0:02:49.4]} 10... Qc7 {[%clk 0:02:14.6]} 11. O-O
{[%clk 0:02:42.4]} 11... Nd5 {[%clk 0:02:12.5]} 12. Rac1 {[%clk 0:02:35.9]}
12... Nxc3 {[%clk 0:02:09.4]} 13. bxc3 {[%clk 0:02:32.8]} 13... Nb6 {[%clk
0:02:05.7]} 14. Bd3 {[%clk 0:02:30.1]} 14... c5 {[%clk 0:01:59.1]} 15. Bb1
{[%clk 0:02:25]} 15... c4 {[%clk 0:01:57.3]} 16. Qc2 {[%clk 0:02:24.1]} 16... f5
{[%clk 0:01:54.3]} 17. e4 {[%clk 0:02:20.3]} 17... Bf4 {[%clk 0:01:37.6]} 18.
exf5 {[%clk 0:01:52.7]} 18... exf5 {[%clk 0:01:33]} 19. Bg3 {[%clk 0:01:49.8]}
19... Bxg3 {[%clk 0:01:29]} 20. hxg3 {[%clk 0:01:50.7]} 20... Nd5 {[%clk
0:01:23]} 21. Ne5 {[%clk 0:01:49.3]} 21... Bd7 {[%clk 0:01:00.5]} 22. Rfe1
{[%clk 0:01:32.6]} 22... Rae8 {[%clk 0:00:53.4]} 23. Re2 {[%clk 0:01:24.9]}
23... Re6 {[%clk 0:00:37.7]} 24. Rce1 {[%clk 0:01:20.3]} 24... Be8 {[%clk
0:00:10.1]} 25. g4 {[%clk 0:01:12.4]} 25... Nf4 {[%clk 0:00:06.6]} 26. Re3
{[%clk 0:01:12.3]} 26... Bg6 {[%clk 0:00:03.9]} 27. Nxg6 {[%clk 0:01:10.5]}
27... Rxg6 {[%clk 0:00:03.6]} 28. Rg3 {[%clk 0:00:49.3]} 28... Nd3 {[%clk
0:00:02.7]} 29. Rxd3 {[%clk 0:00:34.1]} 29... cxd3 {[%clk 0:00:02.7]} 30. Qxd3
{[%clk 0:00:35]} 30... Rxg4 {[%clk 0:00:02.5]} 31. Re5 {[%clk 0:00:31.3]} 31...
Rg6 {[%clk 0:00:02.1]} 32. Rxf5 {[%clk 0:00:28.5]} 32... Rgf6 {[%clk 0:00:02]}
33. Rxf6 {[%clk 0:00:27.2]} 33... Rxf6 {[%clk 0:00:02.3]} 34. g3 {[%clk
0:00:26.1]} 34... Rc6 {[%clk 0:00:01.5]} 35. Qh7+ {[%clk 0:00:21.8]} 35... Kf8
{[%clk 0:00:01.4]} 36. Qh8+ {[%clk 0:00:21.1]} 36... Kf7 {[%clk 0:00:01.6]} 37.
Bc2 {[%clk 0:00:21]} 37... Rxc3 {[%clk 0:00:01.3]} 38. Bb3+ {[%clk 0:00:21.5]}
38... Kf6 {[%clk 0:00:01.1]} 39. Qf8+ {[%clk 0:00:21.1]} 39... Kg5 {[%clk
0:00:01.1]} 40. Kh2 {[%clk 0:00:16.1]} 1-0

[Event "Late-Titled-Tuesday-Blitz-April-02-2024"]
[Site "Chess.com"]
[Date "2024.04.02"]
[Round "7"]
[White "N_I_Chess"]
[Black "Janh4"]
[Result "0-1"]
[WhiteElo "2343"]
[BlackElo "2179"]
[TimeControl "180+1"]
[EndTime "15:16:06 PDT"]
[Termination "Janh4 won on time"]

1. d4 {[%clk 0:02:54.2]} 1... d5 {[%clk 0:03:00]} 2. c4 {[%clk 0:02:53.8]} 2...
Nc6 {[%clk 0:02:59.9]} 3. cxd5 {[%clk 0:02:53.9]} 3... Qxd5 {[%clk 0:02:58.9]}
4. e3 {[%clk 0:02:54.4]} 4... e5 {[%clk 0:02:59.2]} 5. Nc3 {[%clk 0:02:51.6]}
5... Bb4 {[%clk 0:02:59.8]} 6. Bd2 {[%clk 0:02:52.1]} 6... Bxc3 {[%clk
0:02:57.4]} 7. bxc3 {[%clk 0:02:53]} 7... Nf6 {[%clk 0:02:56.5]} 8. Qb3 {[%clk
0:02:52.8]} 8... Qd6 {[%clk 0:02:49.7]} 9. Ne2 {[%clk 0:02:47.1]} 9... O-O
{[%clk 0:02:47.3]} 10. f3 {[%clk 0:02:40.7]} 10... Re8 {[%clk 0:02:45.1]} 11.
Kf2 {[%clk 0:02:40.4]} 11... b6 {[%clk 0:02:25]} 12. Re1 {[%clk 0:02:17]} 12...
Ba6 {[%clk 0:02:20.2]} 13. Ng3 {[%clk 0:02:12.7]} 13... Bxf1 {[%clk 0:02:11.2]}
14. Rhxf1 {[%clk 0:02:12]} 14... Na5 {[%clk 0:02:00.9]} 15. Qc2 {[%clk
0:02:04.1]} 15... c5 {[%clk 0:01:59.3]} 16. Kg1 {[%clk 0:01:50.4]} 16... Rac8
{[%clk 0:01:44.2]} 17. Qd3 {[%clk 0:01:38.4]} 17... g6 {[%clk 0:01:40.5]} 18.
Ne2 {[%clk 0:01:28.9]} 18... e4 {[%clk 0:01:35.8]} 19. fxe4 {[%clk 0:01:11.2]}
19... Nxe4 {[%clk 0:01:32.3]} 20. Rf4 {[%clk 0:01:07.5]} 20... Nxd2 {[%clk
0:01:25.2]} 21. Qxd2 {[%clk 0:01:08.4]} 21... Nc4 {[%clk 0:01:25.6]} 22. Qd3
{[%clk 0:01:03]} 22... Nxe3 {[%clk 0:01:15.7]} 23. Rf3 {[%clk 0:00:53.8]} 23...
Ng4 {[%clk 0:01:08.4]} 24. g3 {[%clk 0:00:33.5]} 24... h5 {[%clk 0:01:04.7]} 25.
Ref1 {[%clk 0:00:28.7]} 25... Rc7 {[%clk 0:00:53.8]} 26. h3 {[%clk 0:00:22.8]}
26... Nh6 {[%clk 0:00:44.9]} 27. d5 {[%clk 0:00:22.1]} 27... Qe5 {[%clk
0:00:36]} 28. Nf4 {[%clk 0:00:19.4]} 28... Nf5 {[%clk 0:00:30.9]} 29. R1f2
{[%clk 0:00:15.8]} 29... Rd7 {[%clk 0:00:29.1]} 30. Re2 {[%clk 0:00:14.9]} 30...
Qb8 {[%clk 0:00:20.8]} 31. Rff2 {[%clk 0:00:12.3]} 31... Rde7 {[%clk 0:00:16.8]}
32. Rxe7 {[%clk 0:00:09.9]} 32... Rxe7 {[%clk 0:00:16.9]} 33. Re2 {[%clk
0:00:06.5]} 33... Qd6 {[%clk 0:00:17.1]} 34. Rxe7 {[%clk 0:00:03.1]} 34... Qxe7
{[%clk 0:00:17.3]} 35. Kf2 {[%clk 0:00:02.3]} 35... Qd6 {[%clk 0:00:16.7]} 36.
c4 {[%clk 0:00:00.9]} 36... Kg7 {[%clk 0:00:15.3]} 0-1

[Event "Late-Titled-Tuesday-Blitz-April-02-2024"]
[Site "Chess.com"]
[Date "2024.04.02"]
[Round "7"]
[White "Resignify"]
[Black "elcala"]
[Result "1-0"]
[WhiteElo "2230"]
[BlackElo "1799"]
[TimeControl "180+1"]
[EndTime "15:16:12 PDT"]
[Termination "Resignify won on time"]

1. e4 {[%clk 0:02:56.4]} 1... d5 {[%clk 0:02:58.8]} 2. exd5 {[%clk 0:02:56.1]}
2... Qxd5 {[%clk 0:02:58.7]} 3. Nc3 {[%clk 0:02:56]} 3... Qd6 {[%clk 0:02:58.5]}
4. d4 {[%clk 0:02:51.2]} 4... Nf6 {[%clk 0:02:54.4]} 5. Bc4 {[%clk 0:02:45.5]}
5... a6 {[%clk 0:02:50.5]} 6. a4 {[%clk 0:02:43.6]} 6... Bg4 {[%clk 0:02:47.3]}
7. Nge2 {[%clk 0:02:40.6]} 7... Nc6 {[%clk 0:02:44.7]} 8. f3 {[%clk 0:02:34.5]}
8... Bh5 {[%clk 0:02:42.2]} 9. Bf4 {[%clk 0:02:34.1]} 9... Qd7 {[%clk 0:02:34]}
10. d5 {[%clk 0:02:25.1]} 10... Nb4 {[%clk 0:02:19.8]} 11. Qd2 {[%clk
0:02:18.4]} 11... Bg6 {[%clk 0:02:14.4]} 12. Bb3 {[%clk 0:02:11.8]} 12... O-O-O
{[%clk 0:02:05.8]} 13. Rd1 {[%clk 0:02:08.9]} 13... h6 {[%clk 0:01:42.8]} 14.
O-O {[%clk 0:02:07]} 14... Nh5 {[%clk 0:01:28.7]} 15. Be3 {[%clk 0:02:02.6]}
15... e6 {[%clk 0:01:21]} 16. Nf4 {[%clk 0:01:18.8]} 16... Nxf4 {[%clk 0:01:15]}
17. Bxf4 {[%clk 0:01:18.9]} 17... exd5 {[%clk 0:01:06.8]} 18. Nxd5 {[%clk
0:01:14.8]} 18... Nxd5 {[%clk 0:00:58.5]} 19. Qxd5 {[%clk 0:01:07.3]} 19... Qxd5
{[%clk 0:00:57.5]} 20. Rxd5 {[%clk 0:01:02.3]} 20... Rxd5 {[%clk 0:00:55.8]} 21.
Bxd5 {[%clk 0:01:02.1]} 21... Bc5+ {[%clk 0:00:53.3]} 22. Kh1 {[%clk 0:01:00.9]}
22... f6 {[%clk 0:00:50.1]} 23. c3 {[%clk 0:00:45.1]} 23... Re8 {[%clk
0:00:49.1]} 24. Bc4 {[%clk 0:00:42.3]} 24... c6 {[%clk 0:00:39.5]} 25. h3 {[%clk
0:00:39]} 25... Bc2 {[%clk 0:00:34.8]} 26. a5 {[%clk 0:00:36.8]} 26... Rd8
{[%clk 0:00:27.5]} 27. Rc1 {[%clk 0:00:33.9]} 27... Bg6 {[%clk 0:00:25.1]} 28.
Kh2 {[%clk 0:00:33.5]} 28... Re8 {[%clk 0:00:18.5]} 29. Rd1 {[%clk 0:00:31.3]}
29... Bh7 {[%clk 0:00:12.5]} 30. Rd2 {[%clk 0:00:29.8]} 30... Bg8 {[%clk
0:00:11]} 31. Bxg8 {[%clk 0:00:28.1]} 31... Rxg8 {[%clk 0:00:10.7]} 32. Re2
{[%clk 0:00:29]} 32... Kd7 {[%clk 0:00:09]} 33. h4 {[%clk 0:00:26.6]} 33... Re8
{[%clk 0:00:07.2]} 34. Rd2+ {[%clk 0:00:26.2]} 34... Kc8 {[%clk 0:00:05.8]} 35.
h5 {[%clk 0:00:26.1]} 35... Rd8 {[%clk 0:00:03.4]} 36. Re2 {[%clk 0:00:26]}
36... Kd7 {[%clk 0:00:02.4]} 37. g4 {[%clk 0:00:25.8]} 37... Re8 {[%clk
0:00:02]} 38. Rd2+ {[%clk 0:00:26.4]} 38... Kc8 {[%clk 0:00:01.8]} 39. Kg3
{[%clk 0:00:26.6]} 39... Rd8 {[%clk 0:00:01.8]} 40. Re2 {[%clk 0:00:26.4]} 40...
Kd7 {[%clk 0:00:01.3]} 41. b4 {[%clk 0:00:24.8]} 1-0

[Event "Late-Titled-Tuesday-Blitz-April-02-2024"]
[Site "Chess.com"]
[Date "2024.04.02"]
[Round "7"]
[White "ZachHKL"]
[Black "NovakRatko"]
[Result "1-0"]
[WhiteElo "2274"]
[BlackElo "2413"]
[TimeControl "180+1"]
[EndTime "15:16:13 PDT"]
[Termination "ZachHKL won on time"]

1. e4 {[%clk 0:03:00.9]} 1... d5 {[%clk 0:02:55]} 2. exd5 {[%clk 0:03:00.2]}
2... c6 {[%clk 0:02:55.2]} 3. dxc6 {[%clk 0:02:59.8]} 3... Nxc6 {[%clk
0:02:56.1]} 4. Nf3 {[%clk 0:02:59.2]} 4... e5 {[%clk 0:02:56.5]} 5. d3 {[%clk
0:02:58.2]} 5... Bc5 {[%clk 0:02:55.8]} 6. Be2 {[%clk 0:02:58.3]} 6... f5 {[%clk
0:02:56]} 7. O-O {[%clk 0:02:58.3]} 7... Nf6 {[%clk 0:02:56.5]} 8. Nc3 {[%clk
0:02:57.2]} 8... O-O {[%clk 0:02:55.4]} 9. Re1 {[%clk 0:02:53.7]} 9... Ng4
{[%clk 0:02:54.4]} 10. Rf1 {[%clk 0:02:51.8]} 10... Qb6 {[%clk 0:02:50]} 11. Qe1
{[%clk 0:02:44.3]} 11... Nb4 {[%clk 0:02:45.9]} 12. Bd1 {[%clk 0:02:37.9]} 12...
Bd7 {[%clk 0:02:22.6]} 13. a3 {[%clk 0:02:34.8]} 13... Na6 {[%clk 0:02:13.3]}
14. h3 {[%clk 0:02:28.5]} 14... Nxf2 {[%clk 0:02:06.6]} 15. Rxf2 {[%clk
0:02:27.7]} 15... Rae8 {[%clk 0:01:57.7]} 16. Kf1 {[%clk 0:02:19.4]} 16... Bxf2
{[%clk 0:01:48.2]} 17. Qxf2 {[%clk 0:02:20.3]} 17... Qg6 {[%clk 0:01:32.1]} 18.
Kg1 {[%clk 0:02:09.3]} 18... e4 {[%clk 0:01:26.1]} 19. Ne1 {[%clk 0:02:03.1]}
19... Bc6 {[%clk 0:01:15.9]} 20. Bf4 {[%clk 0:01:58.2]} 20... b6 {[%clk
0:01:07.2]} 21. Ne2 {[%clk 0:01:52.4]} 21... Nc5 {[%clk 0:00:56.4]} 22. d4
{[%clk 0:01:46]} 22... Ne6 {[%clk 0:00:52.4]} 23. c3 {[%clk 0:01:44]} 23... Nxf4
{[%clk 0:00:41.1]} 24. Nxf4 {[%clk 0:01:33.6]} 24... Qd6 {[%clk 0:00:30]} 25.
Bb3+ {[%clk 0:01:32.8]} 25... Kh8 {[%clk 0:00:29.6]} 26. h4 {[%clk 0:01:15]}
26... e3 {[%clk 0:00:23.1]} 27. Qg3 {[%clk 0:01:15]} 27... Re4 {[%clk
0:00:19.1]} 28. Ne2 {[%clk 0:01:12.6]} 28... f4 {[%clk 0:00:16.7]} 29. Qf3
{[%clk 0:01:05.8]} 29... Rxd4 {[%clk 0:00:14.3]} 30. Nxd4 {[%clk 0:01:01]} 30...
Bxf3 {[%clk 0:00:13.9]} 31. Nexf3 {[%clk 0:01:01.9]} 31... Qd7 {[%clk
0:00:09.9]} 32. Ne6 {[%clk 0:00:58]} 32... Re8 {[%clk 0:00:08.9]} 33. Rd1 {[%clk
0:00:57.3]} 33... Qxd1+ {[%clk 0:00:06.5]} 34. Bxd1 {[%clk 0:00:56.6]} 34...
Rxe6 {[%clk 0:00:06.9]} 35. Be2 {[%clk 0:00:57.2]} 35... Rd6 {[%clk 0:00:06.9]}
36. Kf1 {[%clk 0:00:57.1]} 36... h6 {[%clk 0:00:05.3]} 37. Ke1 {[%clk
0:00:56.3]} 37... Rd5 {[%clk 0:00:04.2]} 38. Nd4 {[%clk 0:00:55.3]} 38... g5
{[%clk 0:00:03.9]} 39. hxg5 {[%clk 0:00:51.9]} 39... hxg5 {[%clk 0:00:04.1]} 40.
Bf3 {[%clk 0:00:51.9]} 40... Re5 {[%clk 0:00:04]} 41. Nc6 {[%clk 0:00:50.9]}
41... Rb5 {[%clk 0:00:03]} 42. b4 {[%clk 0:00:50.2]} 42... a5 {[%clk 0:00:03.1]}
43. c4 {[%clk 0:00:48]} 43... axb4 {[%clk 0:00:01.5]} 44. cxb5 {[%clk
0:00:47.4]} 44... bxa3 {[%clk 0:00:01.5]} 45. Bd5 {[%clk 0:00:48]} 45... Kg7
{[%clk 0:00:01.3]} 46. Nb8 {[%clk 0:00:47.2]} 46... Kf6 {[%clk 0:00:01.8]} 47.
Nd7+ {[%clk 0:00:47.8]} 47... Ke7 {[%clk 0:00:01.8]} 48. Nxb6 {[%clk 0:00:48]}
48... Kd6 {[%clk 0:00:02.7]} 49. Ba2 {[%clk 0:00:47.9]} 49... Kc5 {[%clk
0:00:03.2]} 50. Nd7+ {[%clk 0:00:46.7]} 50... Kxb5 {[%clk 0:00:02.1]} 51. Nf6
{[%clk 0:00:47]} 51... Kb4 {[%clk 0:00:02.4]} 52. Ne4 {[%clk 0:00:47.6]} 52...
g4 {[%clk 0:00:02.7]} 53. Nf6 {[%clk 0:00:44.6]} 53... f3 {[%clk 0:00:02.8]} 54.
g3 {[%clk 0:00:45.2]} 54... Kc3 {[%clk 0:00:02.6]} 55. Nxg4 {[%clk 0:00:45.4]}
55... Kd3 {[%clk 0:00:01.7]} 56. Nf2+ {[%clk 0:00:41.2]} 56... exf2+ {[%clk
0:00:01.7]} 57. Kxf2 {[%clk 0:00:41.8]} 1-0